fUSD/lending_fUSD_20250530
["ID","MTS","AMOUNT","RATE_DAILY","PERIOD"]
[363246960,1748645434457,-1314.0,0.00024994,2]
[363246962,1748645434466,-941.0,0.00024994,2]
[363246964,1748645434475,-801.0,0.00024994,2]
[363246966,1748645434485,-634.0,0.00024994,2]
[363246968,1748645434494,-1466.0,0.00024994,2]
[363246970,1748645434503,-556.0,0.00024994,2]
[363246972,1748645434512,-588.0,0.00024994,2]
[363246974,1748645434521,-924.0,0.00024994,2]
[363246976,1748645434531,-1268.0,0.00024994,2]
[363246978,1748645434541,-848.0,0.00024994,2]
[363246980,1748645434550,-6929.0,0.00024994,2]
[363246982,1748645434559,-885.398,0.00024994,2]
[363246984,1748645434568,-2190.0,0.00024994,2]
[363246986,1748645434577,-151.0,0.00025,7]
[363246988,1748645434587,-400.0,0.00025,2]
[363246990,1748645434596,-3678.12,0.00025,2]
[363246992,1748645434606,-309.0,0.00025,7]
[363246994,1748645434615,-331.0,0.00025,7]
[363246996,1748645434624,-500.0,0.00025,30]
[363246998,1748645434636,-500.0,0.00025,30]
[363247000,1748645434645,-500.0,0.00025,30]
[363247002,1748645434655,-700.0,0.00025,30]
[363247005,1748645434665,-2000.0,0.00025,30]
[363247006,1748645434674,-2000.0,0.00025,30]
[363247009,1748645434685,-2000.0,0.00025,30]
[363247011,1748645434695,-2000.0,0.00025,30]
[363247013,1748645434704,-2000.0,0.00025,30]
[363247015,1748645434713,-2000.0,0.00025,30]
[363247017,1748645434722,-2000.0,0.00025,30]
[363247019,1748645434733,-982.74312343,0.00025,30]
[363247020,1748645434742,-2000.0,0.00025,30]
[363247022,1748645434752,-2000.0,0.00025,30]
[363247024,1748645434761,-500.0,0.00025,30]
[363247027,1748645434771,-2000.0,0.00025,30]
[363247029,1748645434781,-2000.0,0.00025,30]
[363247031,1748645434791,-2000.0,0.00025,30]
[363247033,1748645434800,-500.0,0.00025,30]
[363247035,1748645434809,-2000.0,0.00025,30]
[363247037,1748645434818,-3500.0,0.00025,30]
[363247039,1748645434828,-3400.0,0.00025,30]
[363247041,1748645434837,-500.0,0.00025,30]
[363247043,1748645434846,-3400.0,0.00025,30]
[363247045,1748645434855,-500.0,0.00025,30]
[363247047,1748645434865,-3400.0,0.00025,30]
[363247048,1748645434876,-500.0,0.00025,30]
[363247051,1748645434886,-3400.0,0.00025,30]
[363247053,1748645434896,-500.0,0.00025,30]
[363247054,1748645434905,-3400.0,0.00025,30]
[363247056,1748645434914,-500.0,0.00025,30]
[363247058,1748645434924,-500.0,0.00025,30]
[363247060,1748645434933,-3400.0,0.00025,30]
[363247062,1748645434943,-500.0,0.00025,30]
[363247064,1748645434952,-500.0,0.00025,30]
[363247066,1748645434961,-1778.06649188,0.00025,30]
[363247079,1748645435074,-1621.93350812,0.00025,30]
[363247081,1748645435085,-500.0,0.00025,30]
[363247083,1748645435093,-500.0,0.00025,30]
[363247085,1748645435103,-3400.0,0.00025,30]
[363247087,1748645435112,-500.0,0.00025,30]
[363247089,1748645435122,-500.0,0.00025,30]
[363247091,1748645435132,-3400.0,0.00025,30]
[363247093,1748645435144,-500.0,0.00025,30]
[363247095,1748645435153,-500.0,0.00025,30]
[363247097,1748645435163,-500.0,0.00025,30]
[363247100,1748645435173,-3400.0,0.00025,30]
[363247102,1748645435182,-500.0,0.00025,30]
[363247104,1748645435192,-600.663088,0.00025,30]
[363247107,1748645435213,-500.0,0.00025,30]
[363247110,1748645435229,-3400.0,0.00025,30]
[363247113,1748645435250,-500.0,0.00025,30]
[363247116,1748645435269,-500.0,0.00025,30]
[363247118,1748645435284,-500.0,0.00025,30]
[363247121,1748645435303,-500.0,0.00025,30]
[363247125,1748645435323,-3400.0,0.00025,30]
[363247127,1748645435340,-500.0,0.00025,30]
[363247130,1748645435359,-3400.0,0.00025,30]
[363247133,1748645435376,-500.0,0.00025,30]
[363247136,1748645435399,-5300.0,0.00025,30]
[363247139,1748645435417,-3300.51878449,0.00025034,2]
[363247142,1748645435431,-989.391369,0.00025055,6]
[363247144,1748645435450,-859.92,0.00025099,2]
[363247147,1748645435468,-331.0,0.00025205,7]
[363247150,1748645435486,-151.0,0.00025205,2]
[363247153,1748645435507,-280.49,0.00025221,2]
[363247156,1748645435523,-3300.51878449,0.00025269,2]
[363247159,1748645435538,-375.0,0.000253,2]
[363247161,1748645435554,-767.0,0.000253,2]
[363247164,1748645435568,-280.0,0.000253,10]
[363247166,1748645435584,-6804.36482997,0.00025307,2]
[363247169,1748645435599,-150.0,0.00025362,2]
[363247171,1748645435623,-250.0,0.00025362,2]
[363247172,1748645435640,-246.13,0.00025369,2]
[363247173,1748645435656,-331.0,0.00025479,7]
[363247174,1748645435672,-29914.3316664,0.0002549,3]
[363247175,1748645435688,-218.97566468,0.00025499,2]
[363247176,1748645435704,-3300.51878449,0.00025503,2]
[363247177,1748645435722,-5000.0,0.00025507,2]
[363247178,1748645435738,-151.0,0.00025567,2]
[363247179,1748645435753,-25853.66118643,0.00025587,3]
[363247182,1748645435774,-4060.67047997,0.00025587,3]
[363247184,1748645435788,-9847.5616165,0.00025597,2]
[363247187,1748645435803,-6838.7524069,0.00025597,2]
[363247189,1748645435819,-65536.8729114,0.00025597,2]
[363247192,1748645435836,-1053.44251007,0.00025599,10]
[363247195,1748645435851,-151.0,0.000256,7]
[363247197,1748645435867,-151.0,0.000256,7]
[363247200,1748645435882,-151.0,0.000256,7]
[363247203,1748645435898,-174.77760864,0.000256,7]
[363247205,1748645435914,-151.0,0.000256,7]
[363247208,1748645435929,-151.0,0.000256,7]
[363247210,1748645435944,-151.0,0.000256,7]
[363247213,1748645435961,-151.0,0.000256,7]
[363247216,1748645435976,-151.0,0.000256,7]
[363247218,1748645435991,-151.0,0.000256,7]
[363247221,1748645436005,-151.0,0.000256,7]
[363247223,1748645436020,-206.765007,0.000256,7]
[363247226,1748645436036,-151.0,0.000256,7]
[363247229,1748645436053,-338.519834,0.000256,7]
[363247231,1748645436068,-338.519834,0.000256,7]
[363247234,1748645436084,-151.0,0.000256,7]
[363247237,1748645436099,-258.061332,0.000256,7]
[363247239,1748645436115,-258.061332,0.000256,7]
[363247242,1748645436131,-151.0,0.000256,7]
[363247244,1748645436147,-151.0,0.000256,7]
[363247247,1748645436163,-151.0,0.000256,7]
[363247249,1748645436178,-151.0,0.000256,7]
[363247252,1748645436194,-612.088552,0.000256,7]
[363247255,1748645436209,-612.088552,0.000256,7]
[363247257,1748645436225,-300.0,0.000256,2]
[363247260,1748645436240,-10038.59701178,0.00025604,3]
[363247467,1748645440099,-303.19,0.00022899,2]
[363247469,1748645440109,-500.0,0.0002433,2]
[363247471,1748645440119,-237.11,0.0002433,2]
[363247476,1748645440151,-262.89,0.0002433,2]
[363247478,1748645440161,-500.0,0.0002433,2]
[363247480,1748645440171,-500.0,0.0002433,2]
[363247482,1748645440180,-351.25276232,0.0002433,2]
[363247484,1748645440189,-500.0,0.0002433,2]
[363247486,1748645440200,-200.0,0.0002433,2]
[363247488,1748645440209,-4068.0,0.00024994,2]
[363247491,1748645440219,-180.631,0.00024994,2]
[363247493,1748645440229,-1136.72529403,0.00025088,2]
[363247495,1748645440238,-151.0,0.000256,2]
[363247497,1748645440248,-151.0,0.000256,2]
[363247499,1748645440257,-19875.73465462,0.00025604,3]
[363247501,1748645440267,-562.89,0.00025607,2]
[363247503,1748645440278,-1757.69376871,0.00025621,2]
[363247505,1748645440292,-1623.79944669,0.00025621,2]
[363247507,1748645440302,-1600.27440157,0.00025639,2]
[363247510,1748645440316,-5523.75826793,0.00025639,2]
[363247512,1748645440327,-1000.0,0.00025701,2]
[363247515,1748645440337,-3300.51878449,0.00025738,2]
[363247517,1748645440346,-410.76,0.0002575,120]
[363247519,1748645440357,-331.0,0.00025753,7]
[363247521,1748645440366,-152.0,0.00025753,2]
[363247523,1748645440376,-168.3888056,0.00025765,2]
[363247525,1748645440385,-231.28369723,0.00025765,2]
[363247527,1748645440398,-745.65223616,0.00025765,2]
[363247529,1748645440408,-6910.71,0.000258,7]
[363247531,1748645440418,-331.0,0.0002589,7]
[363247533,1748645440428,-309.0,0.0002589,7]
[363247535,1748645440437,-535.44880581,0.00025953,2]
[363247537,1748645440446,-16059.07022678,0.00025962,3]
[363247560,1748645440556,-937.75510335,0.00025962,3]
[363247563,1748645440568,-2084.2,0.00025962,3]
[363247713,1748645441870,-284.369,0.00024994,2]
[363247715,1748645441880,-1002.78182209,0.00025088,2]
[363247717,1748645441892,-10833.30633627,0.00025962,3]
[363247719,1748645441902,-3300.51878449,0.00025972,2]
[363247721,1748645441913,-581.45021011,0.0002599,2]
[363247723,1748645441923,-175.31388169,0.00025999,2]
[363247725,1748645441934,-500.0,0.00025999,2]
[363247727,1748645441943,-500.0,0.00025999,2]
[363247729,1748645441952,-500.0,0.00025999,2]
[363247731,1748645441962,-500.0,0.00025999,2]
[363247733,1748645441972,-500.0,0.00025999,2]
[363247734,1748645441982,-475.23426649,0.00025999,2]
[363247736,1748645441992,-500.0,0.00025999,2]
[363247739,1748645442001,-500.0,0.00025999,2]
[363247741,1748645442011,-500.0,0.00025999,2]
[363247743,1748645442020,-500.0,0.00025999,2]
[363247744,1748645442030,-500.0,0.00025999,2]
[363247746,1748645442040,-843.0,0.00026,2]
[363247748,1748645442051,-4381.25518767,0.00026,2]
[363247751,1748645442061,-922.76882717,0.00026,2]
[363247753,1748645442071,-309.15037662,0.00026,2]
[363247755,1748645442081,-151.0,0.00026,7]
[363247756,1748645442091,-2000.0,0.00026,2]
[363247759,1748645442100,-777.5,0.00026012,15]
[363247761,1748645442110,-150.0,0.00026012,15]
[363247763,1748645442119,-6804.36482997,0.00026056,2]
[363247764,1748645442131,-2351.0,0.00026122,2]
[363247767,1748645442145,-29914.3316664,0.00026125,3]
[363247768,1748645442154,-18724.1931688,0.00026125,3]
[363247771,1748645442163,-4681.04829221,0.00026134,3]
[363247772,1748645442174,-150.0,0.00026184,2]
[363247774,1748645442183,-150.0,0.00026184,2]
[363247776,1748645442193,-150.0,0.00026184,2]
[363247779,1748645442203,-150.0,0.00026184,2]
[363247780,1748645442212,-150.0,0.00026184,2]
[363247782,1748645442221,-150.0,0.00026184,2]
[363247784,1748645442231,-150.0,0.00026184,2]
[363247787,1748645442240,-150.0,0.00026184,2]
[363247789,1748645442249,-150.0,0.00026184,2]
[363247790,1748645442258,-150.0,0.00026184,2]
[363247792,1748645442268,-150.0,0.00026184,2]
[363247794,1748645442278,-150.0,0.00026184,2]
[363247796,1748645442287,-220.581,0.00026184,2]
[363247798,1748645442297,-1177.08150015,0.00026197,3]
[363247810,1748645442407,-259.3358853,0.00026197,3]
[363247873,1748645443993,-1058.7373145,0.00025088,2]
[363247874,1748645444003,-1107.30782319,0.00025088,2]
[363247875,1748645444012,-151.0,0.00026184,2]
[363247876,1748645444022,-3244.63090676,0.00026197,3]
[363247877,1748645444031,-3300.51878449,0.00026207,2]
[363247878,1748645444041,-200.0,0.00026238,6]
[363247879,1748645444057,-14043.1448766,0.00026299,3]
[363247880,1748645444066,-153.0,0.00026301,2]
[363247881,1748645444076,-1244.84513185,0.00026301,2]
[363247882,1748645444086,-163.05,0.00026301,2]
[363247883,1748645444096,-162.43,0.00026301,2]
[363247884,1748645444105,-8363.55427315,0.0002638,3]
[363247908,1748645446638,-250.0,0.00025088,2]
[363247909,1748645446651,-252.05,0.00025088,2]
[363247910,1748645446663,-547.77358605,0.00025088,2]
[363247911,1748645446672,-7118.45036147,0.0002638,3]
[363247912,1748645446687,-729.74496146,0.0002638,3]
[363247913,1748645446698,-2086.0,0.0002638,3]
[363247914,1748645446745,-11616.58207032,0.0002638,3]
[363247915,1748645446754,-28086.2897533,0.0002638,3]
[363247916,1748645446763,-29914.3316664,0.0002639,3]
[363247917,1748645446773,-14043.1448766,0.0002639,3]
[363247918,1748645446782,-26611.63994414,0.000264,2]
[363247919,1748645446792,-1244.84513185,0.00026411,2]
[363247920,1748645446801,-3300.51878449,0.00026441,2]
[363247921,1748645446811,-150.44,0.00026451,2]
[363247922,1748645446820,-25261.5202941,0.0002646,3]
[363247923,1748645449609,-647.3443589,0.0002646,3]
[363247924,1748645449621,-640.41960788,0.0002646,3]
[363247926,1748645470675,412.69,0.00013699,2]
[363247927,1748645751881,412.0,0.00019726,2]
[363247928,1748646054337,412.0,0.00019726,2]
[363247929,1748646349083,412.0,0.00019726,2]
[363247935,1748646508430,250.0,0.00019,2]
[363247939,1748646567653,399.82,0.00013699,2]
[363247944,1748646618134,412.0,0.00019726,2]
[363247949,1748646631457,-399.82,0.00020187,2]
[363247950,1748646631467,-300.0,0.00021,2]
[363247951,1748646631476,-773.93,0.00021506,2]
[363247952,1748646631486,-872.6,0.000221,2]
[363247953,1748646631500,-304.17,0.00022121,2]
[363247954,1748646631509,-149.85407409,0.00022206,2]
[363247955,1748646631528,-100.14592591,0.00022206,2]
[363247956,1748646631538,-250.0,0.00022206,2]
[363247957,1748646631547,-250.0,0.00022206,2]
[363247958,1748646631557,-305.59,0.00022877,2]
[363247959,1748646631566,-350.0,0.00023,2]
[363247960,1748646631576,-767.02895144,0.00023316,2]
[363247961,1748646631589,-232.97104856,0.00023316,2]
[363247962,1748646631598,-565.35693962,0.00023535,2]
[363247963,1748646631609,-769.42306038,0.00023535,2]
[363247964,1748646631619,-1200.0,0.0002358,2]
[363247965,1748646631629,-459.96,0.00023581,2]
[363247966,1748646631907,-207.4,0.00023655,2]
[363247967,1748646631926,-300.0,0.00023668,2]
[363247968,1748646631935,-3912.59,0.00023669,2]
[363247969,1748646631944,-167.29,0.00023715,2]
[363247970,1748646631954,-773.93,0.0002377,2]
[363247971,1748646631963,-207.0,0.00023773,2]
[363247972,1748646631973,-824.94,0.00023836,2]
[363247973,1748646631982,-225.15,0.00023965,2]
[363247974,1748646631992,-169.44,0.00023992,2]
[363247975,1748646632001,-300.0,0.00024176,2]
[363247976,1748646632012,-150.99,0.00024177,2]
[363247977,1748646632021,-305.72,0.00024177,2]
[363247978,1748646632031,-800.0,0.00024313,9]
[363247979,1748646632040,-800.0,0.00024313,9]
[363247980,1748646632050,-800.0,0.00024313,9]
[363247981,1748646632060,-800.0,0.00024313,9]
[363247982,1748646632069,-800.0,0.00024313,9]
[363247983,1748646632078,-800.0,0.00024313,9]
[363247984,1748646632088,-800.0,0.00024313,9]
[363247985,1748646632098,-800.0,0.00024313,9]
[363247986,1748646632107,-800.0,0.00024313,9]
[363247987,1748646632116,-800.0,0.00024313,9]
[363247988,1748646632125,-3882.84150167,0.00024567,2]
[363247989,1748646632150,-5013.69821723,0.00024567,2]
[363247990,1748646632214,-574.6,0.00024567,2]
[363247991,1748646632225,-714.14261092,0.00024567,2]
[363247992,1748646632301,-300.0,0.00024567,2]
[363247993,1748646632436,-383.91445458,0.00024567,2]
[363247994,1748646632448,-520.1,0.00024567,2]
[363248219,1748646637479,-3615.96750429,0.00024567,2]
[363248220,1748646637491,-992.08412072,0.00024567,2]
[363248221,1748646637519,-57680.81159059,0.00024567,2]
[363248222,1748646637528,-271.2825,0.000246,2]
[363248224,1748646637539,-150.0,0.00024658,2]
[363248226,1748646637549,-166.66,0.00024658,2]
[363248228,1748646637560,-1000.0,0.00024658,2]
[363248229,1748646637570,-1000.0,0.000247,2]
[363248230,1748646637581,-3149.639,0.000247,7]
[363248231,1748646637591,-150.094,0.000247,7]
[363248232,1748646637600,-4763.05538106,0.000247,2]
[363248233,1748646637609,-1650.25939238,0.000247,2]
[363248234,1748646637619,-600.0,0.00024754,2]
[363248235,1748646637628,-500.0,0.00024754,2]
[363248236,1748646637640,-500.0,0.00024754,2]
[363248237,1748646637650,-500.0,0.00024754,2]
[363248238,1748646637659,-362.56991004,0.00024754,2]
[363248239,1748646637669,-500.0,0.00024754,2]
[363248240,1748646637680,-500.0,0.00024754,2]
[363248241,1748646637692,-500.0,0.00024754,2]
[363248242,1748646637703,-500.0,0.00024754,2]
[363248243,1748646637718,-500.0,0.00024754,2]
[363248244,1748646637730,-500.0,0.00024754,2]
[363248245,1748646637739,-500.0,0.00024754,2]
[363248246,1748646637748,-500.0,0.00024754,2]
[363248247,1748646637758,-500.0,0.00024754,2]
[363248248,1748646637768,-500.0,0.00024754,2]
[363248249,1748646637779,-500.0,0.00024754,2]
[363248250,1748646637789,-801.0,0.00024755,2]
[363248251,1748646637799,-634.0,0.00024755,2]
[363248252,1748646637809,-1268.0,0.00024755,2]
[363248253,1748646637819,-588.0,0.00024755,2]
[363248254,1748646637828,-924.0,0.00024755,2]
[363248255,1748646637838,-1466.0,0.00024755,2]
[363248256,1748646637848,-556.0,0.00024755,2]
[363248257,1748646637857,-1155.0,0.00024755,2]
[363248258,1748646637867,-2190.0,0.00024755,2]
[363248259,1748646637876,-4068.0,0.00024755,2]
[363248260,1748646637887,-6929.0,0.00024755,2]
[363248261,1748646637896,-848.0,0.00024755,2]
[363248262,1748646637906,-180.631,0.00024755,2]
[363248263,1748646637915,-284.369,0.00024755,2]
[363248265,1748646637924,-150.0,0.00024756,7]
[363248267,1748646637934,-1115.157653,0.00024785,2]
[363248269,1748646637944,-668.65185757,0.00024785,2]
[363248271,1748646637953,-151.0,0.00024785,2]
[363248273,1748646637963,-300.0,0.00024785,2]
[363248275,1748646637973,-407.43225599,0.00024785,2]
[363248277,1748646637982,-626.26,0.0002479,3]
[363248279,1748646637992,-5214.77,0.000248,2]
[363248282,1748646638003,-5214.77,0.000248,2]
[363248284,1748646638012,-5214.77,0.000248,2]
[363248286,1748646638022,-5214.77,0.000248,2]
[363248287,1748646638031,-5214.77,0.000248,2]
[363248289,1748646638041,-5214.77,0.000248,2]
[363248291,1748646638051,-5214.77,0.000248,2]
[363248294,1748646638061,-5214.77,0.000248,2]
[363248296,1748646638070,-5214.77,0.000248,2]
[363248298,1748646638080,-5214.77,0.000248,2]
[363248300,1748646638089,-5214.77,0.000248,2]
[363248301,1748646638099,-5214.77,0.000248,2]
[363248303,1748646638108,-5214.77,0.000248,2]
[363248305,1748646638119,-5214.77,0.000248,2]
[363248307,1748646638128,-5214.77,0.000248,2]
[363248309,1748646638139,-5214.77,0.000248,2]
[363248311,1748646638148,-5214.77,0.000248,2]
[363248313,1748646638158,-5214.77,0.000248,2]
[363248316,1748646638167,-5214.77,0.000248,2]
[363248317,1748646638176,-5214.82928763,0.000248,2]
[363248320,1748646638186,-2751.0,0.00024839,2]
[363248322,1748646638195,-250.0,0.00024844,2]
[363248323,1748646638206,-150.0,0.00024855,7]
[363248326,1748646638215,-150.0,0.00024855,7]
[363248328,1748646638224,-150.0,0.00024855,7]
[363248330,1748646638234,-150.0,0.00024855,7]
[363248331,1748646638243,-225.15,0.00024864,2]
[363248333,1748646638253,-1650.25939224,0.00024879,2]
[363248360,1748646638500,-150.0,0.00024882,7]
[363248362,1748646638510,-150.0,0.00024882,7]
[363248364,1748646638519,-150.0,0.00024882,7]
[363248366,1748646638530,-150.0,0.00024882,7]
[363248368,1748646638539,-5321.41905857,0.000249,12]
[363248370,1748646638548,-290.34695293,0.0002491,7]
[363248372,1748646638558,-273.31378554,0.0002491,7]
[363248374,1748646638567,-200.0,0.0002491,7]
[363248376,1748646638576,-200.0,0.0002491,7]
[363248378,1748646638586,-413.0,0.00024932,7]
[363248380,1748646638595,-193.0,0.00024932,7]
[363248382,1748646638604,-29210.6665089,0.0002499,3]
[363248384,1748646638613,-413.0,0.00025,7]
[363248386,1748646638622,-193.0,0.00025,7]
[363248388,1748646638631,-500.0,0.00025,30]
[363248390,1748646638641,-500.0,0.00025,30]
[363248392,1748646638650,-500.0,0.00025,30]
[363248394,1748646638659,-500.0,0.00025,30]
[363248396,1748646638669,-800.0,0.00025,30]
[363248398,1748646638679,-700.0,0.00025,30]
[363248400,1748646638688,-700.0,0.00025,30]
[363248402,1748646638697,-700.0,0.00025,30]
[363248404,1748646638706,-800.0,0.00025,30]
[363248406,1748646638715,-700.0,0.00025,30]
[363248408,1748646638725,-800.0,0.00025,30]
[363248410,1748646638734,-700.0,0.00025,30]
[363248412,1748646638744,-800.0,0.00025,30]
[363248414,1748646638753,-700.0,0.00025,30]
[363248416,1748646638762,-800.0,0.00025,30]
[363248418,1748646638772,-1000.0,0.00025,30]
[363248420,1748646638781,-500.0,0.00025,30]
[363248422,1748646638791,-800.0,0.00025,30]
[363248424,1748646638800,-700.0,0.00025,30]
[363248426,1748646638811,-1000.0,0.00025,30]
[363248428,1748646638821,-500.0,0.00025,30]
[363248430,1748646638831,-800.0,0.00025,30]
[363248432,1748646638839,-700.0,0.00025,30]
[363248434,1748646638849,-1000.0,0.00025,30]
[363248436,1748646638858,-500.0,0.00025,30]
[363248438,1748646638867,-800.0,0.00025,30]
[363248440,1748646638876,-700.0,0.00025,30]
[363248442,1748646638886,-1000.0,0.00025,30]
[363248444,1748646638897,-800.0,0.00025,30]
[363248446,1748646638907,-500.0,0.00025,30]
[363248448,1748646638916,-700.0,0.00025,30]
[363248450,1748646638925,-1000.0,0.00025,30]
[363248452,1748646638934,-800.0,0.00025,30]
[363248454,1748646638943,-500.0,0.00025,30]
[363248456,1748646638953,-700.0,0.00025,30]
[363248458,1748646638962,-800.0,0.00025,30]
[363248460,1748646638971,-1800.0,0.00025,30]
[363248462,1748646638981,-700.0,0.00025,30]
[363248464,1748646638990,-1000.0,0.00025,30]
[363248466,1748646638999,-1800.0,0.00025,30]
[363248468,1748646639008,-1300.0,0.00025,30]
[363248470,1748646639019,-1000.0,0.00025,30]
[363248472,1748646639028,-1800.0,0.00025,30]
[363248474,1748646639037,-800.0,0.00025,30]
[363248476,1748646639046,-1800.0,0.00025,30]
[363248478,1748646639055,-1200.0,0.00025,30]
[363248480,1748646639064,-1000.0,0.00025,30]
[363248482,1748646639074,-1000.0,0.00025,30]
[363248484,1748646639083,-1000.0,0.00025,30]
[363248486,1748646639093,-1800.0,0.00025,30]
[363248488,1748646639102,-1000.0,0.00025,30]
[363248490,1748646639112,-1800.0,0.00025,30]
[363248492,1748646639122,-1000.0,0.00025,30]
[363248494,1748646639131,-500.0,0.00025,30]
[363248496,1748646639141,-1800.0,0.00025,30]
[363248498,1748646639150,-500.0,0.00025,30]
[363248500,1748646639160,-1000.0,0.00025,30]
[363248502,1748646639169,-500.0,0.00025,30]
[363248503,1748646639178,-1800.0,0.00025,30]
[363248505,1748646639187,-500.0,0.00025,30]
[363248507,1748646639196,-500.0,0.00025,30]
[363248509,1748646639206,-1000.0,0.00025,30]
[363248511,1748646639215,-1800.0,0.00025,30]
[363248514,1748646639225,-500.0,0.00025,30]
[363248516,1748646639239,-500.0,0.00025,30]
[363248518,1748646639248,-1800.0,0.00025,30]
[363248520,1748646639257,-500.0,0.00025,30]
[363248522,1748646639266,-1800.0,0.00025,30]
[363248525,1748646639275,-500.0,0.00025,30]
[363248527,1748646639284,-500.0,0.00025,30]
[363248529,1748646639294,-1800.0,0.00025,30]
[363248532,1748646639303,-800.0,0.00025,30]
[363248534,1748646639311,-1800.0,0.00025,30]
[363248536,1748646639321,-2400.0,0.00025,30]
[363248538,1748646639330,-400.0,0.00025,2]
[363248540,1748646639339,-237.0,0.00025,2]
[363248542,1748646639348,-215.0738,0.00025024,2]
[363248544,1748646639357,-1650.25939224,0.00025058,2]
[363248546,1748646639366,-150.0,0.00025082,2]
[363248548,1748646639375,-150.0,0.00025082,2]
[363248550,1748646639385,-150.0,0.00025082,2]
[363248552,1748646639395,-1314.0,0.00025082,2]
[363248554,1748646639405,-941.0,0.00025082,2]
[363248556,1748646639414,-500.0,0.00025178,2]
[363248558,1748646639424,-151.0,0.00025205,2]
[363248561,1748646639433,-1650.25939224,0.00025237,2]
[363248563,1748646639442,-158.55666022,0.00025365,2]
[363248566,1748646639452,-1650.25939224,0.00025416,2]
[363248569,1748646639461,-207.0,0.0002542,4]
[363248572,1748646639470,-4763.05538097,0.00025433,2]
[363248574,1748646639479,-5321.41905837,0.00025486,13]
[363248576,1748646639489,-218.97566468,0.00025584,2]
[363248577,1748646639502,-1650.25939224,0.00025595,2]
[363248578,1748646639511,-375.0,0.000256,2]
[363248579,1748646639520,-767.0,0.000256,2]
[363248580,1748646639529,-29210.6665089,0.00025674,3]
[363248581,1748646639540,-420.0,0.00025675,2]
[363248582,1748646639549,-771.0,0.00025684,2]
[363248583,1748646639559,-500.0,0.00025684,2]
[363248584,1748646639568,-500.0,0.00025684,2]
[363248585,1748646639578,-500.0,0.00025684,2]
[363248586,1748646639587,-500.0,0.00025684,2]
[363248587,1748646639596,-500.0,0.00025684,2]
[363248588,1748646639605,-500.0,0.00025684,2]
[363248589,1748646639614,-500.0,0.00025684,2]
[363248590,1748646639623,-500.0,0.00025684,2]
[363248592,1748646639633,-500.0,0.00025684,2]
[363248594,1748646639643,-500.0,0.00025684,2]
[363248596,1748646639652,-500.0,0.00025684,2]
[363248598,1748646639661,-500.0,0.00025684,2]
[363248600,1748646639671,-500.0,0.00025684,2]
[363248602,1748646639680,-500.0,0.00025684,2]
[363248604,1748646639689,-500.0,0.00025684,2]
[363248606,1748646639698,-500.0,0.00025684,2]
[363248608,1748646639707,-500.0,0.00025684,2]
[363248610,1748646639717,-500.0,0.00025684,2]
[363248612,1748646639726,-500.0,0.00025684,2]